fUST/lending_fUST_20250718
["ID","MTS","AMOUNT","RATE_DAILY","PERIOD"]
[372950472,1752817858103,-688.88269438,0.00022739,2]
[372950474,1752817858112,-479.97,0.00022739,2]
[372950476,1752817858121,-3471.16,0.00022739,2]
[372950478,1752817858131,-501.25,0.00022739,2]
[372950480,1752817858140,-473.32,0.00022739,2]
[372950482,1752817858149,-773.36,0.00022739,2]
[372950484,1752817858158,-715.11734867,0.00022739,2]
[372950486,1752817858168,-2093.77990307,0.00022739,2]
[372950488,1752817858178,-745.45,0.00022739,2]
[372950490,1752817858187,-998.41,0.00022739,2]
[372950492,1752817858197,-597.68589637,0.00022739,2]
[372950494,1752817858206,-1221.05,0.00022739,2]
[372950496,1752817858215,-262.80094474,0.00022739,2]
[372950498,1752817858225,-688.64882759,0.00022739,2]
[372950500,1752817858234,-1356.99633239,0.00022739,2]
[372950502,1752817858245,-1968.92,0.00022739,2]
[372950505,1752817858254,-768.29895878,0.00022739,2]
[372950507,1752817858264,-601.94,0.00022739,2]
[372950509,1752817858274,-1340.38,0.00022739,2]
[372950510,1752817858283,-3455.73,0.00022739,2]
[372950512,1752817858292,-12500.0,0.00022755,7]
[372950515,1752817858303,-12500.0,0.00022764,7]
[372950516,1752817858314,-12500.0,0.00022773,7]
[372950518,1752817858325,-150.0,0.00022908,2]
[372950521,1752817858335,-215.0738,0.00023002,2]
[372950523,1752817858344,-482.29,0.00023013,2]
[372950525,1752817858354,-1108.80089599,0.00023049,2]
[372950527,1752817858363,-404.29,0.00023333,2]
[372950528,1752817858373,-1108.80089599,0.0002339,2]
[372950531,1752817858383,-1108.80089599,0.00023732,2]
[372950533,1752817858392,-206.0,0.00023836,11]
[372950534,1752817858402,-436.95928,0.000239,2]
[372950536,1752817858411,-1000.0,0.00024,2]
[372950538,1752817858422,-1000.0,0.00024,2]
[372950540,1752817858431,-1000.0,0.00024,2]
[372950542,1752817858441,-1000.0,0.00024,2]
[372950544,1752817858450,-1000.0,0.00024,2]
[372950547,1752817858459,-1000.0,0.00024,2]
[372950549,1752817858469,-1000.0,0.00024,2]
[372950550,1752817858478,-1000.0,0.00024,2]
[372950552,1752817858488,-1000.0,0.00024,2]
[372950554,1752817858497,-1000.0,0.00024,2]
[372950556,1752817858507,-1000.0,0.00024,2]
[372950558,1752817858516,-1000.0,0.00024,2]
[372950560,1752817858525,-1000.0,0.00024,2]
[372950562,1752817858535,-1000.0,0.00024,2]
[372950564,1752817858545,-1000.0,0.00024,2]
[372950566,1752817858554,-1000.0,0.00024,2]
[372950569,1752817858564,-1075.58,0.00024,2]
[372950571,1752817858573,-160.0,0.00024,7]
[372950573,1752817858582,-160.0,0.00024,7]
[372950575,1752817858592,-215.63268315,0.00024,7]
[372950577,1752817858601,-525.75194068,0.00024,7]
[372950579,1752817858610,-230.89969799,0.00024,7]
[372950581,1752817858619,-160.0,0.00024,7]
[372950583,1752817858629,-839.30593155,0.00024,7]
[372950585,1752817858638,-500.0,0.0002406,2]
[372950586,1752817858648,-1108.80089599,0.00024074,2]
[372950588,1752817858657,-151.0,0.000242,9]
[372950591,1752817858667,-223.0315306,0.00024371,2]
[372950592,1752817858679,-20745.92,0.000244,2]
[372950595,1752817858688,-390.154461,0.00024401,8]
[372950596,1752817858697,-1108.80089599,0.00024416,2]
[372950598,1752817858706,-2806.60928554,0.00024533,2]
[372950600,1752817858717,-166.0,0.000246,7]
[372950602,1752817858729,-166.0,0.000246,3]
[372950604,1752817858740,-168.82224494,0.000246,4]
[372950606,1752817858751,-380.0,0.00024658,2]
[372950608,1752817858761,-209.91046531,0.00024658,2]
[372950611,1752817858770,-151.0,0.00024658,2]
[372950613,1752817858779,-151.0,0.00024658,2]
[372950615,1752817858789,-627.0,0.00024658,2]
[372950616,1752817858797,-151.0,0.00024658,2]
[372950619,1752817858807,-151.0,0.00024658,2]
[372950620,1752817858816,-151.0,0.00024658,2]
[372950622,1752817858826,-151.0,0.00024658,2]
[372950624,1752817858835,-500.0,0.00024658,2]
[372950627,1752817858845,-151.0,0.00024658,2]
[372950628,1752817858857,-151.0,0.00024658,2]
[372950630,1752817858867,-151.0,0.00024658,2]
[372950632,1752817858876,-201.58018176,0.00024658,2]
[372950634,1752817858885,-151.0,0.00024658,2]
[372950636,1752817858895,-151.0,0.00024658,2]
[372950638,1752817858904,-299.82776563,0.00024658,2]
[372950640,1752817858914,-453.0,0.00024658,2]
[372950642,1752817858927,-404.29,0.00024667,2]
[372950644,1752817858936,-150.0,0.0002467,2]
[372950646,1752817858945,-961.60473553,0.00024675,2]
[372950648,1752817858954,-15888.74,0.000247,9]
[372950650,1752817858963,-85781.08156033,0.000247,9]
[372950653,1752817858975,-10155.12045873,0.000247,9]
[372950655,1752817858986,-529.74542586,0.000247,9]
[372950667,1752817859095,-935.53642851,0.000189,2]
[372950669,1752817859105,-499.27,0.00021369,2]
[372950671,1752817859114,-399.61197939,0.00021643,2]
[372950673,1752817859125,-99.65802061,0.00021643,2]
[372950675,1752817859134,-499.27,0.00021917,2]
[372950677,1752817859143,-150.103,0.00022073,2]
[372950679,1752817859153,-499.27,0.00022191,2]
[372950681,1752817859162,-499.27,0.00022465,2]
[372950683,1752817859174,-499.35614278,0.00022739,2]
[372950685,1752817859183,-935.53642851,0.000239,2]
[372950687,1752817859192,-27353.25990801,0.000247,9]
[372950689,1752817859203,-694.50938659,0.000247,9]
[372950700,1752817859326,-3224.03174613,0.000247,9]
[372950701,1752817859338,-10721.34521516,0.000247,9]
[372951104,1752817921836,5000.0,0.0001864,14]
[372951105,1752817958134,974.52811545,0.00016037,2]
[372951106,1752818028720,275.546452,0.00013699,2]
[372951108,1752818173423,852.71210101,0.00016036,2]
[372951109,1752818183373,154.62392442,0.00016035,2]
[372951110,1752818188125,154.62392441,0.00016035,2]
[372951111,1752818193124,154.62392441,0.00016035,2]
[372951112,1752818198139,154.62392441,0.00016036,2]
[372951113,1752818203128,154.62392441,0.00016036,2]
[372951114,1752818208182,154.62392441,0.00016036,2]
[372951115,1752818213142,154.62392441,0.00016036,2]
[372951137,1752818359414,5000.0,0.000161,2]
[372951138,1752818375690,1543.07535357,0.000161,2]
[372951139,1752818396172,746.12308834,0.00016035,2]
[372951141,1752818480751,426.00969964,0.000161,2]
[372951142,1752818573984,-341.37013102,0.00016133,2]
[372951143,1752818574007,-500.0,0.00016133,2]
[372951144,1752818574032,-500.0,0.00016133,2]
[372951145,1752818574059,-500.0,0.00016133,2]
[372951146,1752818574084,-500.0,0.00016133,2]
[372951147,1752818574109,-500.0,0.00016133,2]
[372951148,1752818574139,-500.0,0.00016133,2]
[372951149,1752818574162,-500.0,0.00016133,2]
[372951150,1752818574184,-500.0,0.00016133,2]
[372951151,1752818574208,-154.39384639,0.00016133,2]
[372951152,1752818574232,-379.52373819,0.00016133,2]
[372951153,1752818574255,-124.7122844,0.00016133,2]
[372951154,1752818612630,652.85770235,0.00016034,2]
[372951155,1752818649842,925.89961867,0.0001565,2]
[372951156,1752818670383,166.58103911,0.00015962,2]
[372951157,1752818703434,5000.0,0.000161,2]
[372951158,1752818718761,5000.0,0.000161,2]
[372951159,1752818735715,331.05074965,0.000161,2]
[372951160,1752818749102,-1075.2877156,0.00016133,2]
[372951161,1752818749124,-300.0,0.00016133,2]
[372951162,1752818749146,-300.0,0.00016133,2]
[372951163,1752818749191,-300.0,0.00016133,2]
[372951164,1752818749214,-300.0,0.00016133,2]
[372951165,1752818749236,-1200.0,0.00016133,2]
[372951166,1752818749261,-3445.93351012,0.00016338,2]
[372951167,1752818749283,-553.18,0.00016428,3]
[372951168,1752818749305,-155.48123768,0.00016437,2]
[372951169,1752818749326,-409.80384149,0.00016438,2]
[372951170,1752818749347,-289.3656507,0.00016438,2]
[372951171,1752818766805,12261.33567326,0.00015627,2]
[372951172,1752818766831,12638.66432674,0.00015627,2]
[372951174,1752818951040,555.5397712,0.00015848,2]
[372951258,1752819032793,-643.57758508,0.00016337,2]
[372951261,1752819032803,-300.0,0.00016337,2]
[372951264,1752819032813,-300.0,0.00016337,2]
[372951267,1752819032826,-1200.0,0.00016337,2]
[372951270,1752819032836,-300.0,0.00016337,2]
[372951273,1752819032845,-264.39152647,0.00016337,2]
[372951275,1752819032855,-239.37709404,0.00016337,2]
[372951278,1752819032865,-3219.08595978,0.00016338,2]
[372951281,1752819032875,-926.23941598,0.00016338,2]
[372951284,1752819032884,-2700.2492639,0.00016338,2]
[372951288,1752819032901,-35022.67260023,0.00016338,2]
[372951291,1752819032911,-295.0,0.00016437,2]
[372951294,1752819032922,-171.15071898,0.00016438,2]
[372951297,1752819032935,-461.35879714,0.00016438,2]
[372951300,1752819032945,-463.02936047,0.00016438,2]
[372951301,1752819032955,-277.41589654,0.00016438,2]
[372951302,1752819032966,-460.0,0.00016438,2]
[372951303,1752819032977,-461.29636618,0.00016438,2]
[372951304,1752819032986,-461.30853,0.00016438,2]
[372951305,1752819032996,-460.0,0.00016438,2]
[372951306,1752819033006,-460.0,0.00016438,2]
[372951307,1752819033016,-460.0,0.00016438,2]
[372951308,1752819033026,-460.0,0.00016438,2]
[372951309,1752819033036,-460.0,0.00016438,2]
[372951310,1752819033046,-460.0,0.00016438,2]
[372951311,1752819033055,-460.0,0.00016438,2]
[372951312,1752819033065,-460.0,0.00016438,2]
[372951313,1752819033075,-466.22385599,0.00016438,2]
[372951314,1752819033085,-460.0,0.00016438,2]
[372951315,1752819033095,-460.0,0.00016438,2]
[372951316,1752819033104,-460.0,0.00016438,2]
[372951317,1752819033115,-460.0,0.00016438,2]
[372951318,1752819033125,-460.0,0.00016438,2]
[372951319,1752819033135,-231.04054852,0.00016438,2]
[372951320,1752819033145,-460.0,0.00016438,2]
[372951321,1752819033155,-460.0,0.00016438,2]
[372951322,1752819033165,-460.0,0.00016438,2]
[372951323,1752819033183,-460.0,0.00016438,2]
[372951324,1752819033194,-460.0,0.00016438,2]
[372951325,1752819033204,-460.0,0.00016438,2]
[372951326,1752819033215,-460.0,0.00016438,2]
[372951327,1752819033225,-460.0,0.00016438,2]
[372951328,1752819033235,-462.37883308,0.00016438,2]
[372951329,1752819033246,-179.51177599,0.00016438,2]
[372951330,1752819033256,-460.0,0.00016438,2]
[372951331,1752819033266,-460.0,0.00016438,2]
[372951332,1752819033277,-460.97361261,0.00016438,2]
[372951333,1752819033286,-457.14844608,0.00016438,2]
[372951334,1752819033298,-460.0,0.00016438,2]
[372951335,1752819033307,-460.0,0.00016438,2]
[372951336,1752819033317,-186.58256409,0.00016438,2]
[372951337,1752819033327,-460.0,0.00016438,2]
[372951338,1752819033337,-460.0,0.00016438,2]
[372951339,1752819033347,-460.0,0.00016438,2]
[372951340,1752819033357,-460.0,0.00016438,2]
[372951341,1752819033367,-460.0,0.00016438,2]
[372951342,1752819033378,-460.0,0.00016438,2]
[372951343,1752819033388,-461.76982339,0.00016438,2]
[372951344,1752819033399,-460.0,0.00016438,2]
[372951345,1752819033409,-462.08102748,0.00016438,2]
[372951346,1752819033420,-461.10044359,0.00016438,2]
[372951347,1752819033433,-460.0,0.00016438,2]
[372951348,1752819033443,-460.0,0.00016438,2]
[372951349,1752819033452,-460.0,0.00016438,2]
[372951350,1752819033465,-460.0,0.00016438,2]
[372951351,1752819033474,-219.53975283,0.00016438,2]
[372951352,1752819033485,-266.94701857,0.00016438,2]
[372951353,1752819033496,-461.38214413,0.00016438,2]
[372951354,1752819033506,-460.0,0.00016438,2]
[372951355,1752819033516,-460.0,0.00016438,2]
[372951356,1752819033526,-460.0,0.00016438,2]
[372951357,1752819033535,-460.0,0.00016438,2]
[372951358,1752819033546,-371.62683514,0.00016438,2]
[372951359,1752819033556,-460.0,0.00016438,2]
[372951360,1752819033565,-460.0,0.00016438,2]
[372951361,1752819033575,-460.0,0.00016438,2]
[372951362,1752819033585,-461.9799767,0.00016438,2]
[372951363,1752819033595,-460.0,0.00016438,2]
[372951364,1752819033605,-460.0,0.00016438,2]
[372951365,1752819033615,-122.8025096,0.00016438,2]
[372951366,1752819033629,-337.1974904,0.00016438,2]
[372951367,1752819033640,-460.0,0.00016438,2]
[372951368,1752819033650,-460.92231117,0.00016438,2]
[372951369,1752819033660,-562.76037301,0.00016438,2]
[372951370,1752819033670,-463.77780753,0.00016438,2]
[372951371,1752819033683,-460.0,0.00016438,2]
[372951372,1752819033693,-460.0,0.00016438,2]
[372951373,1752819033703,-460.0,0.00016438,2]
[372951374,1752819033713,-504.05202461,0.00016438,2]
[372951375,1752819033723,-460.0,0.00016438,2]
[372951376,1752819033734,-523.2,0.00016438,2]
[372951377,1752819033744,-460.0,0.00016438,2]
[372951378,1752819033754,-460.0,0.00016438,2]
[372951379,1752819033764,-460.0,0.00016438,2]
[372951380,1752819033775,-460.0,0.00016438,2]
[372951381,1752819033784,-460.0,0.00016438,2]
[372951382,1752819033794,-460.0,0.00016438,2]
[372951383,1752819033804,-460.0,0.00016438,2]
[372951384,1752819033814,-460.0,0.00016438,2]
[372951385,1752819033824,-460.0,0.00016438,2]
[372951386,1752819033834,-328.490059,0.00016438,2]
[372951387,1752819033844,-460.0,0.00016438,2]
[372951388,1752819033854,-460.0,0.00016438,2]
[372951389,1752819033866,-460.0,0.00016438,2]
[372951390,1752819033877,-449.82524885,0.00016438,2]
[372951391,1752819033888,-460.0,0.00016438,2]
[372951392,1752819033899,-460.0,0.00016438,2]
[372951393,1752819033910,-460.0,0.00016438,2]
[372951394,1752819033921,-460.0,0.00016438,2]
[372951395,1752819033935,-460.0,0.00016438,2]
[372951396,1752819033946,-460.0,0.00016438,2]
[372951397,1752819034136,-460.0,0.00016438,2]
[372951398,1752819034156,-495.5,0.00016438,2]
[372951399,1752819034170,-460.0,0.00016438,2]
[372951400,1752819034185,-460.0,0.00016438,2]
[372951401,1752819034196,-460.0,0.00016438,2]
[372951402,1752819034208,-460.0,0.00016438,2]
[372951403,1752819034219,-460.0,0.00016438,2]
[372951404,1752819034229,-460.0,0.00016438,2]
[372951405,1752819034241,-460.0,0.00016438,2]
[372951406,1752819034254,-460.0,0.00016438,2]
[372951407,1752819034264,-461.5299484,0.00016438,2]
[372951408,1752819034275,-460.0,0.00016438,2]
[372951409,1752819034285,-460.0,0.00016438,2]
[372951410,1752819034296,-463.88742101,0.00016438,2]
[372951411,1752819034306,-707.8,0.00016438,2]
[372951412,1752819034317,-460.0,0.00016438,2]
[372951413,1752819034327,-463.13467232,0.00016438,2]
[372951414,1752819034337,-460.0,0.00016438,2]
[372951415,1752819034347,-460.0,0.00016438,2]
[372951416,1752819034357,-464.0018957,0.00016438,2]
[372951417,1752819034367,-460.0,0.00016438,2]
[372951418,1752819034377,-460.0,0.00016438,2]
[372951419,1752819034387,-460.0,0.00016438,2]
[372951420,1752819034397,-460.0,0.00016438,2]
[372951421,1752819034407,-460.0,0.00016438,2]
[372951422,1752819034417,-460.0,0.00016438,2]
[372951423,1752819034427,-460.0,0.00016438,2]
[372951424,1752819034440,-460.0,0.00016438,2]
[372951425,1752819034451,-460.0,0.00016438,2]
[372951426,1752819034461,-462.21644527,0.00016438,2]
[372951427,1752819034471,-460.0,0.00016438,2]
[372951428,1752819034481,-460.0,0.00016438,2]
[372951429,1752819034491,-361.17071422,0.00016438,2]
[372951430,1752819034501,-460.0,0.00016438,2]
[372951431,1752819034511,-460.0,0.00016438,2]
[372951432,1752819034521,-460.0,0.00016438,2]
[372951433,1752819034531,-523.39517473,0.00016438,2]
[372951434,1752819034541,-460.0,0.00016438,2]
[372951435,1752819034551,-460.0,0.00016438,2]
[372951436,1752819034561,-460.0,0.00016438,2]
[372951437,1752819034571,-460.0,0.00016438,2]
[372951438,1752819034581,-460.91747215,0.00016438,2]
[372951439,1752819034592,-460.0,0.00016438,2]
[372951440,1752819034602,-460.0,0.00016438,2]
[372951441,1752819034612,-460.0,0.00016438,2]
[372951442,1752819034623,-460.0,0.00016438,2]
[372951443,1752819034633,-460.0,0.00016438,2]
[372951444,1752819034643,-460.0,0.00016438,2]
[372951445,1752819034653,-460.0,0.00016438,2]
[372951446,1752819034662,-460.0,0.00016438,2]
[372951447,1752819034672,-460.0,0.00016438,2]
[372951448,1752819034683,-460.0,0.00016438,2]
[372951449,1752819034692,-460.0,0.00016438,2]
[372951450,1752819034702,-460.0,0.00016438,2]
[372951451,1752819034711,-460.0,0.00016438,2]
[372951452,1752819034721,-460.0,0.00016438,2]
[372951453,1752819034730,-460.0,0.00016438,2]
[372951454,1752819034740,-460.0,0.00016438,2]
[372951455,1752819034751,-460.0,0.00016438,2]
[372951456,1752819034761,-460.0,0.00016438,2]
[372951457,1752819034771,-460.0,0.00016438,2]
[372951458,1752819034782,-460.0,0.00016438,2]
[372951459,1752819034792,-460.0,0.00016438,2]
[372951460,1752819034802,-460.0,0.00016438,2]
[372951461,1752819034812,-460.0,0.00016438,2]
[372951462,1752819034823,-472.41701683,0.00016438,2]
[372951463,1752819034832,-460.0,0.00016438,2]
[372951464,1752819034842,-460.0,0.00016438,2]
[372951465,1752819034852,-460.0,0.00016438,2]
[372951466,1752819034861,-460.0,0.00016438,2]
[372951467,1752819034871,-179.09413915,0.00016438,2]
[372951468,1752819034881,-460.0,0.00016438,2]
[372951469,1752819034891,-460.0,0.00016438,2]
[372951470,1752819034900,-460.0,0.00016438,2]
[372951471,1752819034910,-461.66145791,0.00016438,2]
[372951472,1752819034919,-460.0,0.00016438,2]
[372951473,1752819034929,-460.0,0.00016438,2]
[372951474,1752819034942,-460.0,0.00016438,2]
[372951475,1752819034952,-460.0,0.00016438,2]
[372951476,1752819034962,-460.0,0.00016438,2]
[372951477,1752819034972,-460.0,0.00016438,2]
[372951478,1752819034982,-460.0,0.00016438,2]
[372951479,1752819034991,-461.88816894,0.00016438,2]
[372951480,1752819035002,-461.61852314,0.00016438,2]
[372951481,1752819035011,-462.35461278,0.00016438,2]
[372951482,1752819035021,-460.0,0.00016438,2]
[372951483,1752819035030,-460.0,0.00016438,2]
[372951484,1752819035040,-460.9530298,0.00016438,2]
[372951485,1752819035049,-460.0,0.00016438,2]
[372951486,1752819035059,-460.0,0.00016438,2]
[372951487,1752819035068,-460.0,0.00016438,2]
[372951488,1752819035078,-460.0,0.00016438,2]
[372951489,1752819035087,-460.0,0.00016438,2]
[372951490,1752819035097,-460.84760798,0.00016438,2]
[372951491,1752819035107,-460.0,0.00016438,2]
[372951492,1752819035116,-460.0,0.00016438,2]
[372951493,1752819035126,-462.15411236,0.00016438,2]
[372951494,1752819035135,-460.0,0.00016438,2]
[372951495,1752819035145,-460.0,0.00016438,2]
[372951496,1752819035155,-460.0,0.00016438,2]
[372951497,1752819035167,-460.0,0.00016438,2]
[372951498,1752819035180,-154.47418738,0.00016438,2]
[372951499,1752819035199,-305.52581262,0.00016438,2]
[372951500,1752819035209,-462.000712,0.00016438,2]
[372951501,1752819035219,-460.0,0.00016438,2]
[372951502,1752819035228,-460.0,0.00016438,2]
[372951503,1752819035238,-460.0,0.00016438,2]
[372951504,1752819035249,-460.0,0.00016438,2]
[372951505,1752819035259,-460.0,0.00016438,2]
[372951506,1752819035268,-460.0,0.00016438,2]
[372951507,1752819035278,-460.0,0.00016438,2]
[372951508,1752819035289,-460.0,0.00016438,2]
[372951509,1752819035299,-460.0,0.00016438,2]
[372951510,1752819035308,-460.0,0.00016438,2]
[372951511,1752819035318,-460.0,0.00016438,2]
[372951512,1752819035329,-460.0,0.00016438,2]
[372951513,1752819035339,-460.0,0.00016438,2]
[372951514,1752819035349,-460.0,0.00016438,2]
[372951515,1752819035359,-460.0,0.00016438,2]
[372951516,1752819035369,-460.0,0.00016438,2]
[372951517,1752819035380,-460.0,0.00016438,2]
[372951518,1752819035391,-460.0,0.00016438,2]
[372951519,1752819035402,-462.30901201,0.00016438,2]
[372951520,1752819035411,-460.0,0.00016438,2]
[372951521,1752819035421,-460.0,0.00016438,2]
[372951522,1752819035431,-460.0,0.00016438,2]
[372951523,1752819035442,-435.22296729,0.00016438,2]
[372951524,1752819035452,-460.0,0.00016438,2]
[372951525,1752819035461,-460.0,0.00016438,2]
[372951526,1752819035471,-460.0,0.00016438,2]
[372951527,1752819035480,-460.0,0.00016438,2]
[372951528,1752819035491,-460.0,0.00016438,2]
[372951529,1752819035501,-460.0,0.00016438,2]
[372951530,1752819035511,-460.0,0.00016438,2]
[372951531,1752819035520,-460.0,0.00016438,2]
[372951532,1752819035530,-464.79025515,0.00016438,2]
[372951533,1752819035540,-460.0,0.00016438,2]
[372951534,1752819035549,-460.0,0.00016438,2]
[372951535,1752819035559,-460.0,0.00016438,2]
[372951536,1752819035568,-460.0,0.00016438,2]
[372951537,1752819035578,-460.0,0.00016438,2]
[372951538,1752819035588,-460.0,0.00016438,2]
[372951539,1752819035598,-460.0,0.00016438,2]
[372951540,1752819035608,-460.0,0.00016438,2]
[372951541,1752819035617,-460.0,0.00016438,2]
[372951542,1752819035627,-460.0,0.00016438,2]
[372951543,1752819035637,-460.0,0.00016438,2]
[372951544,1752819035647,-460.0,0.00016438,2]
[372951545,1752819035656,-460.0,0.00016438,2]
[372951546,1752819035667,-460.0,0.00016438,2]
[372951547,1752819035676,-460.0,0.00016438,2]
[372951548,1752819035688,-460.0,0.00016438,2]
[372951549,1752819035699,-460.0,0.00016438,2]
[372951550,1752819035708,-460.0,0.00016438,2]
[372951551,1752819035718,-460.0,0.00016438,2]
[372951552,1752819035728,-460.0,0.00016438,2]
[372951553,1752819035738,-460.0,0.00016438,2]
[372951554,1752819035747,-460.0,0.00016438,2]
[372951555,1752819035757,-460.0,0.00016438,2]
[372951556,1752819035767,-461.13433126,0.00016438,2]
[372951557,1752819035776,-500.0,0.00016438,2]
[372951558,1752819035785,-500.0,0.00016438,2]
[372951559,1752819035795,-500.0,0.00016438,2]
[372951560,1752819035804,-500.0,0.00016438,2]
[372951561,1752819035814,-500.0,0.00016438,2]
[372951562,1752819035823,-500.0,0.00016438,2]
[372951563,1752819035833,-277.90594881,0.00016438,2]
[372951564,1752819035842,-608.91,0.00016438,2]
[372951565,1752819035852,-460.0,0.00016438,2]
[372951566,1752819035862,-513.53,0.00016438,2]
[372951567,1752819035872,-460.0,0.00016438,2]
[372951568,1752819035882,-460.0,0.00016438,2]
[372951569,1752819035891,-588.27,0.00016438,2]
[372951570,1752819035901,-460.0,0.00016438,2]
[372951571,1752819035911,-316.48579284,0.00016438,2]
[372951572,1752819035920,-464.217621,0.00016438,2]
[372951573,1752819035930,-461.93658956,0.00016438,2]
[372951574,1752819035942,-460.0,0.00016438,2]
[372951575,1752819035951,-462.26315546,0.00016438,2]
[372951576,1752819035961,-460.0,0.00016438,2]
[372951577,1752819035970,-460.0,0.00016438,2]
[372951578,1752819035980,-460.0,0.00016438,2]
[372951579,1752819035990,-460.0,0.00016438,2]
[372951580,1752819035999,-469.46523406,0.00016438,2]
[372951581,1752819036009,-460.0,0.00016438,2]
[372951582,1752819036019,-500.0,0.00016438,2]
[372951583,1752819036028,-500.0,0.00016438,2]
[372951584,1752819036038,-460.0,0.00016438,2]
[372951585,1752819036048,-460.0,0.00016438,2]
[372951586,1752819036057,-500.0,0.00016438,2]
[372951587,1752819036066,-500.0,0.00016438,2]
[372951588,1752819036077,-500.0,0.00016438,2]
[372951589,1752819036087,-500.0,0.00016438,2]
[372951590,1752819036097,-578.42803645,0.00016438,2]
[372951591,1752819036107,-500.0,0.00016438,2]
[372951592,1752819036116,-461.04204511,0.00016438,2]
[372951593,1752819036126,-460.0,0.00016438,2]
[372951594,1752819036136,-460.0,0.00016438,2]
[372951595,1752819036145,-460.0,0.00016438,2]
[372951596,1752819036155,-460.0,0.00016438,2]
[372951597,1752819036164,-460.0,0.00016438,2]
[372951598,1752819036179,-460.0,0.00016438,2]
[372951599,1752819036193,-460.0,0.00016438,2]
[372951600,1752819036211,-460.0,0.00016438,2]
[372951601,1752819036226,-460.0,0.00016438,2]
[372951602,1752819036236,-460.0,0.00016438,2]
[372951603,1752819036248,-460.0,0.00016438,2]
[372951604,1752819036257,-460.0,0.00016438,2]
[372951605,1752819036267,-460.0,0.00016438,2]
[372951606,1752819036276,-460.0,0.00016438,2]
[372951607,1752819036286,-460.0,0.00016438,2]
[372951608,1752819036296,-460.0,0.00016438,2]
[372951609,1752819036305,-460.0,0.00016438,2]
[372951610,1752819036315,-460.0,0.00016438,2]
[372951611,1752819036325,-462.18655994,0.00016438,2]
[372951612,1752819036335,-549.88225106,0.00016438,2]
[372951613,1752819036344,-460.0,0.00016438,2]
[372951614,1752819036355,-460.85355952,0.00016438,2]
[372951615,1752819036365,-460.0,0.00016438,2]
[372951616,1752819036374,-460.0,0.00016438,2]
[372951617,1752819036385,-437.71605876,0.00016438,2]
[372951618,1752819036395,-460.0,0.00016438,2]
[372951619,1752819036405,-460.0,0.00016438,2]
[372951620,1752819036415,-461.42057068,0.00016438,2]
[372951621,1752819036424,-460.0,0.00016438,2]
[372951622,1752819036437,-348.1456239,0.00016438,2]
[372951623,1752819036447,-375.98451859,0.00016438,2]
[372951624,1752819036457,-451.06570274,0.00016438,2]
[372951625,1752819036466,-460.0,0.00016438,2]
[372951626,1752819036476,-471.76,0.00016438,2]
[372951627,1752819036485,-462.30616764,0.00016438,2]
[372951628,1752819036495,-460.0,0.00016438,2]
[372951629,1752819036504,-460.0,0.00016438,2]
[372951630,1752819036514,-460.0,0.00016438,2]
[372951631,1752819036523,-460.0,0.00016438,2]
[372951632,1752819036533,-460.0,0.00016438,2]